[Event "GER-ch Youth-U12 2022"]
[Site "Willingen"]
[Date "2022.06.08"]
[Round "5.19"]
[White "Herrmann, Jakob"]
[Black "Wang, Arthur D"]
[Result "1/2-1/2"]
[ECO "C45"]
[WhiteElo "1737"]
[BlackElo "2090"]
[Annotator "TA"]
[PlyCount "80"]
[EventDate "2022.06.05"]
[EventType "swiss"]
[EventRounds "9"]
[EventCountry "GER"]
[SourceTitle "playchess.com"]
[Source "ChessBase"]
[SourceQuality "1"]
[TimeControl "40/4500+30:900+30"]

{[%evp 19,80,22,13,-17,46,54,49,40,64,50,78,70,74,8,43,-22,-12,-239,-225,-325,-321,-325,-285,-279,-245,-242,-241,-245,-247,-245,-234,-241,-70,-263,-216,-310,-106,-314,0,0,40,40,292,22,33,33,107,107,107,46,46,46,46,46,46,46,46,46,107,107,107,107,118]} 1. e4 {[%emt 0:00:00]} e5 {[%emt 0:00:00]} 2. Nf3 {[%emt 0:00:00]} Nc6 {[%emt 0:00:00]} 3. d4 {[%emt 0:00:00]} exd4 {[%emt 0:00:00]} 4. Nxd4 {[%emt 0:00:00]} Bc5 {[%emt 0:00:00]} 5. Be3 {[%emt 0:00:00]} Qf6 {[%emt 0:00:00]} 6. c3 {[%emt 0:00:00]} Nge7 {[%emt 0:00:00]} 7. Bc4 {[%emt 0:00:00]} d6 {[%emt 0:00:00]} 8. O-O {[%emt 0:00:00]} O-O {[%emt 0:00:00]} 9. Nxc6 {[%emt 0:00:00]} Nxc6 {[%emt 0:00:00]} 10. Bxc5 {[%emt 0:00:00]} dxc5 {[%emt 0:00:00]} 11. Nd2 {[%emt 0:00:00] C45: Scotch Game.} Qg6 {[%emt 0:00:00]} (11... Ne5 $11) 12. f4 $14 {[%emt 0:00:00]} b6 {[%emt 0:00:17]} 13. Bd5 {[%emt 0:00:00] White is slightly better.} Bb7 {[%emt 0:00:53] [#]} 14. Nc4 $146 {[%emt 0:03:29]} ({Predecessor:} 14. Qf3 Rad8 15. Rfd1 Na5 16. Bxb7 Nxb7 17. Nc4 Nd6 18. f5 Qg5 19. Nxd6 Rxd6 20. e5 {½-½ (40) Bednarska,M (2194)-Jadanowska,B (1873) Opole 2006}) 14... Ba6 {[%emt 0:03:06]} 15. Qa4 {[%emt 0:10:05][%csl LRa6,LRc6]} Bxc4 {[%emt 0:03:55]} 16. Qxc4 {[%emt 0:00:49]} (16. Bxc4 $16 {Strongly threatening Bd5.} Na5 17. Be2) 16... Rad8 {[%emt 0:01:21] Prevents Bd5.} (16... Na5 $5 {[%cal Ra5c4]} 17. Qe2 c6 $11) 17. b4 {[%emt 0:07:52]} (17. Qe2 $14) 17... Ne7 $11 {[%emt 0:02:23]} 18. bxc5 $2 {[%emt 0:01:10]} (18. f5 $11 {and White is okay.} Qh5 19. b5 (19. bxc5 c6 $17)) 18... c6 $19 {[%emt 0:03:42]} 19. Rad1 {[%emt 0:03:46]} (19. Bxf7+ {was worth a try.} Qxf7 20. Qxf7+ Kxf7 21. cxb6) 19... cxd5 {[%emt 0:00:43]} 20. exd5 {[%emt 0:00:08]} bxc5 {[%emt 0:00:54]} 21. Qxc5 {[%emt 0:00:10]} Qb6 {[%emt 0:01:42]} 22. Qxb6 {[%emt 0:03:44]} axb6 {[%emt 0:00:05]} 23. c4 {[%emt 0:00:33]} Nf5 {[%emt 0:00:20] And now ...Ne3 would win.} 24. Rb1 {[%emt 0:02:53]} Ne3 {[%emt 0:02:07]} 25. Rfc1 {[%emt 0:00:22]} Ra8 $2 {[%emt 0:01:56]} (25... Rc8 $19 {Threatens to win with ...Rfd8.} 26. Kf2 Nxc4) 26. Rxb6 $2 {[%emt 0:02:21]} (26. Rb3 $1 $15 Nf5 27. Rxb6) 26... Rxa2 {[%emt 0:00:45]} 27. d6 {[%emt 0:00:11]} (27. g3 $142 Rg2+ 28. Kh1) 27... Rxg2+ {[%emt 0:00:34]} 28. Kh1 {[%emt 0:00:05]} Rg6 $2 {[%emt 0:01:07]} (28... Rd2 $1 $19 {...Rc8 is the strong threat.} 29. c5 g6) 29. c5 $11 {[%emt 0:02:08]} Ng4 {[%emt 0:01:07][%cal Rg4f2]} 30. Rb2 {[%emt 0:02:27] Prevents Nf2+.} h5 $2 {[%emt 0:12:09][%mdl 8192] [#]} (30... f5 $1 $14) 31. c6 $2 {[%emt 0:05:07]} (31. Rd2 $1 $18) 31... Rxd6 {[%emt 0:00:57]} 32. c7 {[%emt 0:00:05] Hoping for Rb8.} Re6 {[%emt 0:01:51] [#]} (32... Rc8 $2 33. Rb8 Rdd8 34. cxd8=Q+ $18) (32... Rdd8 $1 $14) 33. Rb8 $1 $16 {[%emt 0:02:44]} Ree8 {[%emt 0:00:31]} (33... Nf2+ $2 34. Kg2 Nd3 35. Rxf8+ Kxf8 36. c8=Q+ $18) 34. Rcb1 {[%emt 0:04:31]} ({White should play} 34. Rxe8 $16 Rxe8 35. c8=Q Rxc8 36. Rxc8+ Kh7 37. Kg2) 34... Kh7 $1 $14 {[%emt 0:03:08]} 35. Rxe8 {[%emt 0:02:27]} Rxe8 {[%emt 0:00:12] KRN-KR} 36. Rb8 {[%emt 0:00:16] Prevents Rc8.} Re1+ {[%emt 0:00:09]} (36... Nf2+ $2 37. Kg2 Rxb8 38. cxb8=Q $18) 37. Kg2 {[%emt 0:00:08]} Re2+ {[%emt 0:00:53]} 38. Kg3 {[%emt 0:00:17]} Rc2 {[%emt 0:00:37]} (38... Re3+ $1 $14 39. Kh4 Rc3) 39. c8=Q $16 {[%emt 0:00:09]} Rxc8 {[%emt 0:00:30]} 40. Rxc8 {[%emt 0:00:02]} Nf6 {[%emt 0:02:06] Whites escaped into a draw.  Weighted Error Value: White=0.57/Black=0.42} 1/2-1/2

[Event "GER-ch Youth-U12 2022"]
[Site "Willingen"]
[Date "2022.06.08"]
[Round "5.20"]
[White "Goldkuhle, Collin"]
[Black "Burkart, Lloyd Shang"]
[Result "1/2-1/2"]
[ECO "B23"]
[WhiteElo "1323"]
[BlackElo "1559"]
[Annotator "NA RC COMBH"]
[PlyCount "59"]
[EventDate "2022.06.05"]
[EventType "swiss"]
[EventRounds "9"]
[EventCountry "GER"]
[SourceTitle "playchess.com"]
[Source "ChessBase"]
[SourceQuality "1"]
[TimeControl "40/4500+30:900+30"]

1. e4 {[%emt 0:00:00]} c5 {[%emt 0:00:00]} 2. Nc3 {[%emt 0:00:00]} Nc6 {[%emt 0:00:00]} 3. f4 {[%emt 0:00:00]} g6 {[%emt 0:00:00]} 4. Nf3 {[%emt 0:00:00]} Bg7 {[%emt 0:00:00]} 5. Bb5 {[%emt 0:00:00]} Nd4 {[%emt 0:00:00]} 6. O-O {[%emt 0:00:00]} a6 {[%emt 0:00:00]} 7. Bc4 {[%emt 0:00:00]} b5 {[%emt 0:00:00]} 8. Bd5 {[%emt 0:00:00]} Ra7 {[%emt 0:00:00]} 9. e5 {[%emt 0:00:00]} Bb7 {[%emt 0:01:54]} 10. Bxb7 {[%emt 0:00:25]} Rxb7 {[%emt 0:00:04]} 11. Ne4 {[%emt 0:01:22]} Rc7 {[%emt 0:08:04]} 12. d3 {[%emt 0:02:34]} Nh6 {[%emt 0:02:02]} 13. c3 {[%emt 0:06:32]} Nxf3+ {[%emt 0:04:05]} 14. Qxf3 {[%emt 0:01:59]} d6 {[%emt 0:06:42]} 15. Bd2 {[%emt 0:10:47]} O-O {[%emt 0:03:35]} 16. a4 {[%emt 0:10:04]} Qd7 {[%emt 0:04:42]} 17. axb5 {[%emt 0:01:56]} axb5 {[%emt 0:00:27]} 18. Ra6 {[%emt 0:01:09]} dxe5 {[%emt 0:01:56]} 19. fxe5 {[%emt 0:00:15]} Ng4 {[%emt 0:03:35]} 20. Qg3 {[%emt 0:05:32]} Bxe5 {[%emt 0:03:59]} 21. Qh4 {[%emt 0:00:56]} h5 {[%emt 0:09:29]} 22. h3 {[%emt 0:05:48]} Qxd3 {[%emt 0:01:18]} 23. hxg4 {[%emt 0:01:45]} Qxe4 {[%emt 0:00:30]} 24. Bh6 {[%emt 0:03:24]} Bg7 {[%emt 0:08:01]} 25. Bf4 {[%emt 0:01:13]} e5 {[%emt 0:01:52]} 26. Bd2 {[%emt 0:03:30]} Qxg4 {[%emt 0:00:40]} 27. Qf2 {[%emt 0:00:36]} Qd7 {[%emt 0:14:05]} 28. Bg5 {[%emt 0:02:53]} Rc6 {[%emt 0:00:33]} 29. Rxc6 {[%emt 0:00:29]} Qxc6 {[%emt 0:00:04]} 30. Be7 {[%emt 0:00:08]} 1/2-1/2

[Event "GER-ch Youth-U12 2022"]
[Site "Willingen"]
[Date "2022.06.08"]
[Round "5.21"]
[White "Limmer, Marco"]
[Black "Bangert, Jonas"]
[Result "0-1"]
[ECO "B32"]
[WhiteElo "1825"]
[BlackElo "1483"]
[Annotator "NA RC COMBH"]
[PlyCount "42"]
[EventDate "2022.06.05"]
[EventType "swiss"]
[EventRounds "9"]
[EventCountry "GER"]
[SourceTitle "playchess.com"]
[Source "ChessBase"]
[SourceQuality "1"]
[TimeControl "40/4500+30:900+30"]

1. e4 {[%emt 0:00:00]} c5 {[%emt 0:00:00]} 2. Nf3 {[%emt 0:00:00]} Nc6 {[%emt 0:00:00]} 3. d4 {[%emt 0:00:00]} cxd4 {[%emt 0:00:00]} 4. Nxd4 {[%emt 0:00:00]} e5 {[%emt 0:00:00]} 5. Nb5 {[%emt 0:00:00]} a6 {[%emt 0:00:00]} 6. Nd6+ {[%emt 0:00:00]} Bxd6 {[%emt 0:00:00]} 7. Qxd6 {[%emt 0:00:00]} Qf6 {[%emt 0:00:00]} 8. Qd1 {[%emt 0:00:00]} Qg6 {[%emt 0:00:00]} 9. Nc3 {[%emt 0:00:00]} d5 {[%emt 0:00:00]} 10. Nxd5 {[%emt 0:00:00]} Qxe4+ {[%emt 0:00:00]} 11. Be3 {[%emt 0:00:00]} Nd4 {[%emt 0:00:00]} 12. Nc7+ {[%emt 0:00:00]} Ke7 {[%emt 0:00:00]} 13. Rc1 {[%emt 0:01:50]} Bg4 {[%emt 0:00:00]} 14. Qd3 {[%emt 0:01:45]} Qxd3 {[%emt 0:00:00]} 15. Bxd3 {[%emt 0:02:02]} Rd8 {[%emt 0:01:26]} 16. Bc4 {[%emt 0:03:22]} Nxc2+ {[%emt 0:04:55]} 17. Kf1 {[%emt 0:00:23]} Nxe3+ {[%emt 0:02:05]} 18. fxe3 {[%emt 0:00:16]} Nf6 {[%emt 0:11:32]} 19. h3 {[%emt 0:00:18]} Bf5 {[%emt 0:01:23]} 20. Ke2 {[%emt 0:02:41]} Be4 {[%emt 0:05:01]} 21. Kf2 {[%emt 0:01:57]} Rd2+ {[%emt 0:08:10]} 0-1

[Event "GER-ch Youth-U12 2022"]
[Site "Willingen"]
[Date "2022.06.08"]
[Round "5.22"]
[White "Agirretxe San Sebastian, Jesus M"]
[Black "Büchel, David"]
[Result "0-1"]
[ECO "E61"]
[WhiteElo "2117"]
[BlackElo "1527"]
[Annotator "TA"]
[PlyCount "57"]
[EventDate "2022.06.05"]
[EventType "swiss"]
[EventRounds "9"]
[EventCountry "GER"]
[SourceTitle "playchess.com"]
[Source "ChessBase"]
[SourceQuality "1"]
[TimeControl "40/4500+30:900+30"]

{[%evp 15,57,26,30,29,21,21,45,55,47,53,44,22,39,26,23,20,52,42,41,-33,-10,-10,-13,-8,19,-159,-165,-126,-111,-764,-729,-801,-786,-787,-779,-1311,-1334,-1482,-1483,-1432,-1407,-1546,-1083,-29990]} 1. d4 {[%emt 0:00:00]} Nf6 {[%emt 0:00:00]} 2. c4 {[%emt 0:00:00]} g6 {[%emt 0:00:00]} 3. Nc3 {[%emt 0:00:00]} Bg7 {[%emt 0:00:00]} 4. Nf3 {[%emt 0:00:00]} O-O {[%emt 0:00:00]} 5. Bg5 {[%emt 0:00:00][%cal Bc1g5,Bg5h4,Bh4g3][%mdl 32]} d6 {[%emt 0:00:00]} 6. e3 {[%emt 0:00:00]} Nbd7 {[%emt 0:00:00]} 7. Be2 {[%emt 0:00:00]} e5 {[%emt 0:00:00] is now debated instead of 7...c6.} 8. dxe5 {[%emt 0:00:00]} dxe5 {[%emt 0:00:00]} 9. Qc2 {[%emt 0:00:00] E61: King's Indian: Early deviations for White, including Smyslov System.} h6 {[%emt 0:00:00]} 10. Bh4 {[%emt 0:00:00]} g5 {[%emt 0:00:00]} 11. Bg3 {[%emt 0:00:00] White is slightly better.} Qe7 {[%emt 0:00:00]} 12. Nd2 {[%emt 0:00:00]} c6 {[%emt 0:05:28]} 13. O-O {[%emt 0:00:00]} Ne8 {[%emt 0:02:50]} 14. Rab1 {[%emt 0:04:08]} f5 {[%emt 0:03:06]} 15. f3 {[%emt 0:00:15] [#]} Ndf6 $146 {[%emt 0:08:54]} ({Predecessor:} 15... a5 16. a3 Nc7 17. Bf2 Ne6 18. b4 axb4 19. axb4 f4 20. c5 fxe3 21. Bxe3 Nd4 {0-1 (30) Orsag,M (2405)-Movsesian,S (2640) Pribram 1998}) 16. b4 {[%emt 0:04:59]} h5 {[%emt 0:06:02]} 17. f4 {[%emt 0:02:02]} ({White should try} 17. e4 $14) 17... exf4 {[%emt 0:08:44]} 18. exf4 {[%emt 0:00:12]} Ng4 {[%emt 0:02:43]} 19. Bxg4 {[%emt 0:00:35] [#] Rfe1 is the strong threat.} Qe3+ {[%emt 0:01:22]} 20. Rf2 $2 {[%emt 0:02:07]} (20. Bf2 $11 Qxc3 21. Bd1) 20... fxg4 $17 {[%emt 0:06:05]} ({Reject} 20... hxg4 $6 21. Ne2 $11) 21. Nd1 {[%emt 0:04:25]} Qe7 {[%emt 0:06:52] Black is more active.} 22. Nb3 $2 {[%emt 0:02:30][%mdl 8192] White does not recover from this.} (22. fxg5 $17 Bd4 23. c5 Qxg5 24. Qb3+ Kg7 25. Qd3 Bxf2+ 26. Nxf2) 22... Bf5 $19 {[%emt 0:01:55] Black is clearly winning.} 23. Qc1 {[%emt 0:02:20]} Bxb1 {[%emt 0:00:52]} 24. Qxb1 {[%emt 0:00:06]} h4 {[%emt 0:00:43]} 25. f5 {[%emt 0:01:45]} hxg3 {[%emt 0:00:40]} 26. hxg3 {[%emt 0:00:08]} Qe1+ {[%emt 0:00:44]} 27. Rf1 {[%emt 0:00:07]} Qxg3 {[%emt 0:00:13] aiming for ...Be5.} 28. Qe4 {[%emt 0:01:19]} Nf6 {[%emt 0:01:39]} 29. Nd4 {[%emt 0:00:49] Weighted Error Value: White=0.99/Black=0.30} 0-1

[Event "GER-ch Youth-U12 2022"]
[Site "Willingen"]
[Date "2022.06.08"]
[Round "5.23"]
[White "Xu, Wanghan"]
[Black "Nguyen, Bach Khoi"]
[Result "0-1"]
[ECO "C55"]
[WhiteElo "1419"]
[BlackElo "1261"]
[Annotator "NA RC COMBH"]
[PlyCount "108"]
[EventDate "2022.06.05"]
[EventType "swiss"]
[EventRounds "9"]
[EventCountry "GER"]
[SourceTitle "playchess.com"]
[Source "ChessBase"]
[SourceQuality "1"]
[TimeControl "40/4500+30:900+30"]

1. e4 {[%emt 0:00:00]} e5 {[%emt 0:00:00]} 2. Nf3 {[%emt 0:00:00]} Nc6 {[%emt 0:00:00]} 3. Nc3 {[%emt 0:00:00]} Nf6 {[%emt 0:00:00]} 4. Bc4 {[%emt 0:00:00]} Nxe4 {[%emt 0:00:51]} 5. Bxf7+ {[%emt 0:00:00]} Kxf7 {[%emt 0:00:00]} 6. Nxe4 {[%emt 0:00:00]} d5 {[%emt 0:00:00]} 7. Ng3 {[%emt 0:00:00]} e4 {[%emt 0:00:00]} 8. Ng1 {[%emt 0:00:00]} Bc5 {[%emt 0:00:00]} 9. N1e2 {[%emt 0:00:00]} Bg4 {[%emt 0:00:00]} 10. h3 {[%emt 0:00:00]} Bxe2 {[%emt 0:00:00]} 11. Nxe2 {[%emt 0:00:00]} d4 {[%emt 0:00:00]} 12. Ng3 {[%emt 0:00:00]} Qd5 {[%emt 0:01:04]} 13. O-O {[%emt 0:00:00]} d3 {[%emt 0:01:05]} 14. c3 {[%emt 0:00:00]} Rhf8 {[%emt 0:01:37]} 15. Nxe4 {[%emt 0:00:00]} Bb6 {[%emt 0:08:45]} 16. Qf3+ {[%emt 0:00:00]} Ke7 {[%emt 0:02:54]} 17. Qg4 {[%emt 0:00:00]} Kf7 {[%emt 0:04:57]} 18. Ng5+ {[%emt 0:00:00]} Kg8 {[%emt 0:00:53]} 19. Qe6+ {[%emt 0:00:48]} Qxe6 {[%emt 0:00:07]} 20. Nxe6 {[%emt 0:00:06]} Rfe8 {[%emt 0:01:06]} 21. Nf4 {[%emt 0:00:40]} Rad8 {[%emt 0:01:48]} 22. b4 {[%emt 0:00:56]} Re4 {[%emt 0:01:13]} 23. Nh5 {[%emt 0:00:51]} Rf8 {[%emt 0:03:00]} 24. Ba3 {[%emt 0:00:56]} Re2 {[%emt 0:02:42]} 25. b5 {[%emt 0:01:51]} Rfxf2 {[%emt 0:03:00]} 26. Rxf2 {[%emt 0:01:04]} Bxf2+ {[%emt 0:00:15]} 27. Kf1 {[%emt 0:00:06]} Ne5 {[%emt 0:00:33]} 28. Rd1 {[%emt 0:01:51]} Nc4 {[%emt 0:01:48]} 29. Nf4 {[%emt 0:01:12]} Nxd2+ {[%emt 0:01:26]} 30. Rxd2 {[%emt 0:00:51]} Rxd2 {[%emt 0:00:10]} 31. Nxd3 {[%emt 0:03:43]} Rxd3 {[%emt 0:01:43]} 32. Kxf2 {[%emt 0:00:11]} Rxc3 {[%emt 0:00:27]} 33. Bb4 {[%emt 0:00:13]} Rc2+ {[%emt 0:00:13]} 34. Kf3 {[%emt 0:00:11]} Rxa2 {[%emt 0:00:07]} 35. Bc5 {[%emt 0:00:21]} Ra5 {[%emt 0:00:48]} 36. Ke4 {[%emt 0:00:18]} Rxb5 {[%emt 0:00:16]} 37. Bxa7 {[%emt 0:00:07]} b6 {[%emt 0:00:08]} 38. Bb8 {[%emt 0:00:04]} Rc5 {[%emt 0:00:08]} 39. Ba7 {[%emt 0:00:21]} Kf7 {[%emt 0:00:15]} 40. g4 {[%emt 0:00:05]} Ke7 {[%emt 0:00:31]} 41. h4 {[%emt 0:15:25]} Kd7 {[%emt 0:15:31]} 42. h5 {[%emt 0:00:20]} Ra5 {[%emt 0:00:28]} 43. Bb8 {[%emt 0:00:19]} Kc8 {[%emt 0:00:06]} 44. Bxc7 {[%emt 0:00:05]} Kxc7 {[%emt 0:00:04]} 45. Kf4 {[%emt 0:00:18]} Rc5 {[%emt 0:00:10]} 46. g5 {[%emt 0:00:06]} b5 {[%emt 0:00:04]} 47. g6 {[%emt 0:00:14]} h6 {[%emt 0:00:05]} 48. Kg4 {[%emt 0:00:12]} b4 {[%emt 0:00:06]} 49. Kh4 {[%emt 0:00:08]} b3 {[%emt 0:00:04]} 50. Kg4 {[%emt 0:00:05]} b2 {[%emt 0:00:05]} 51. Kh4 {[%emt 0:00:05]} b1=Q {[%emt 0:00:05]} 52. Kg4 {[%emt 0:00:09]} Qe4+ {[%emt 0:00:40]} 53. Kg3 {[%emt 0:00:09]} Rg5+ {[%emt 0:00:17]} 54. Kh3 {[%emt 0:00:23]} Qh1# {[%emt 0:00:38]} 0-1

[Event "GER-ch Youth-U12 2022"]
[Site "Willingen"]
[Date "2022.06.08"]
[Round "5.24"]
[White "Haertel, Leon"]
[Black "Gavrylyuk, Oleksandr"]
[Result "0-1"]
[ECO "D51"]
[WhiteElo "1536"]
[BlackElo "1272"]
[Annotator "NA RC COMBH"]
[PlyCount "86"]
[EventDate "2022.06.05"]
[EventType "swiss"]
[EventRounds "9"]
[EventCountry "GER"]
[SourceTitle "playchess.com"]
[Source "ChessBase"]
[SourceQuality "1"]
[TimeControl "40/4500+30:900+30"]

1. d4 {[%emt 0:00:00]} d5 {[%emt 0:00:00]} 2. c4 {[%emt 0:00:00]} c6 {[%emt 0:00:00]} 3. Nc3 {[%emt 0:00:00]} e6 {[%emt 0:00:00]} 4. a3 {[%emt 0:00:00]} Nf6 {[%emt 0:00:00]} 5. Bg5 {[%emt 0:00:00]} Nbd7 {[%emt 0:00:00]} 6. e3 {[%emt 0:00:00]} Be7 {[%emt 0:00:00]} 7. Nf3 {[%emt 0:00:00]} a6 {[%emt 0:00:00]} 8. c5 {[%emt 0:00:00]} h6 {[%emt 0:00:00]} 9. Bh4 {[%emt 0:00:00]} b6 {[%emt 0:00:00]} 10. cxb6 {[%emt 0:00:00]} Nxb6 {[%emt 0:00:00]} 11. Bd3 {[%emt 0:00:00]} O-O {[%emt 0:00:00]} 12. O-O {[%emt 0:00:00]} Nfd7 {[%emt 0:00:00]} 13. Bg3 {[%emt 0:00:00]} c5 {[%emt 0:01:53]} 14. Re1 {[%emt 0:00:00]} Bf6 {[%emt 0:10:39]} 15. Qe2 {[%emt 0:00:00]} Bb7 {[%emt 0:03:29]} 16. Rad1 {[%emt 0:03:01]} Re8 {[%emt 0:06:29]} 17. Bc2 {[%emt 0:03:27]} e5 {[%emt 0:07:53]} 18. dxe5 {[%emt 0:00:22]} Nxe5 {[%emt 0:01:12]} 19. Nxe5 {[%emt 0:00:22]} Bxe5 {[%emt 0:00:21]} 20. Bxe5 {[%emt 0:00:23]} Rxe5 {[%emt 0:00:46]} 21. Qd3 {[%emt 0:00:38]} g6 {[%emt 0:03:33]} 22. Ne2 {[%emt 0:01:40]} Nc4 {[%emt 0:02:05]} 23. Qc3 {[%emt 0:01:26]} Qe7 {[%emt 0:04:18]} 24. Bb3 {[%emt 0:01:39]} Nb6 {[%emt 0:01:20]} 25. Ng3 {[%emt 0:02:38]} Re8 {[%emt 0:04:41]} 26. Rc1 {[%emt 0:05:54]} d4 {[%emt 0:05:18]} 27. Qd3 {[%emt 0:02:03]} dxe3 {[%emt 0:02:25]} 28. Qxg6+ {[%emt 0:00:09]} Kh8 {[%emt 0:02:18]} 29. Qxh6+ {[%emt 0:00:08]} Kg8 {[%emt 0:00:12]} 30. f3 {[%emt 0:00:24]} Rg5 {[%emt 0:07:15]} 31. Rc3 {[%emt 0:02:32]} c4 {[%emt 0:02:23]} 32. Rcxe3 {[%emt 0:00:48]} Qc5 {[%emt 0:01:51]} 33. Qxg5+ {[%emt 0:00:15]} Qxg5 {[%emt 0:00:25]} 34. Rxe8+ {[%emt 0:00:05]} Kg7 {[%emt 0:00:28]} 35. Bc2 {[%emt 0:00:18]} Nd5 {[%emt 0:01:00]} 36. Nf5+ {[%emt 0:00:44]} Kf6 {[%emt 0:00:33]} 37. Rh8 {[%emt 0:00:16]} Nf4 {[%emt 0:00:57]} 38. Ng3 {[%emt 0:01:55]} Qc5+ {[%emt 0:00:53]} 39. Kh1 {[%emt 0:00:18]} Qf2 {[%emt 0:00:25]} 40. Rh6+ {[%emt 0:00:36]} Kg5 {[%emt 0:02:12]} 41. Re5+ {[%emt 0:17:49]} Kxh6 {[%emt 0:18:40]} 42. Nf5+ {[%emt 0:00:13]} Kh7 {[%emt 0:02:54]} 43. Ne7+ {[%emt 0:00:11]} Qxc2 {[%emt 0:00:23]} 0-1

[Event "GER-ch Youth-U12 2022"]
[Site "Willingen"]
[Date "2022.06.08"]
[Round "5.25"]
[White "Prashanthakumar, Arju"]
[Black "Dell, Philip"]
[Result "1/2-1/2"]
[ECO "A37"]
[WhiteElo "1265"]
[BlackElo "1457"]
[Annotator "NA RC COMBH"]
[PlyCount "46"]
[EventDate "2022.06.05"]
[EventType "swiss"]
[EventRounds "9"]
[EventCountry "GER"]
[SourceTitle "playchess.com"]
[Source "ChessBase"]
[SourceQuality "1"]
[TimeControl "40/4500+30:900+30"]

1. c4 {[%emt 0:00:00]} c5 {[%emt 0:00:00]} 2. Nc3 {[%emt 0:00:00]} g6 {[%emt 0:00:00]} 3. g3 {[%emt 0:00:00]} Bg7 {[%emt 0:00:00]} 4. Nf3 {[%emt 0:00:00]} Nc6 {[%emt 0:00:00]} 5. Bg2 {[%emt 0:00:00]} e6 {[%emt 0:00:00]} 6. e3 {[%emt 0:00:00]} Nge7 {[%emt 0:00:00]} 7. O-O {[%emt 0:00:00]} d5 {[%emt 0:00:00]} 8. cxd5 {[%emt 0:00:00]} Nxd5 {[%emt 0:00:00]} 9. Nxd5 {[%emt 0:00:00]} exd5 {[%emt 0:00:00]} 10. d4 {[%emt 0:00:00]} cxd4 {[%emt 0:00:00]} 11. exd4 {[%emt 0:03:47]} O-O {[%emt 0:03:05]} 12. Be3 {[%emt 0:07:07]} Be6 {[%emt 0:15:13]} 13. Qd2 {[%emt 0:07:23]} Re8 {[%emt 0:12:35]} 14. Rac1 {[%emt 0:10:08]} Qd7 {[%emt 0:03:32]} 15. Rfe1 {[%emt 0:04:59]} Rac8 {[%emt 0:04:44]} 16. Bh6 {[%emt 0:09:31]} Bh3 {[%emt 0:05:21]} 17. Bxg7 {[%emt 0:05:48]} Bxg2 {[%emt 0:00:35]} 18. Kxg2 {[%emt 0:01:13]} Kxg7 {[%emt 0:00:06]} 19. Ne5 {[%emt 0:04:04]} Nxe5 {[%emt 0:00:42]} 20. Rxc8 {[%emt 0:01:31]} Qxc8 {[%emt 0:02:20]} 21. dxe5 {[%emt 0:01:28]} Qc4 {[%emt 0:07:34]} 22. b3 {[%emt 0:03:47]} Qc6 {[%emt 0:00:51]} 23. Qd4 {[%emt 0:04:19]} Re6 {[%emt 0:02:29]} 1/2-1/2

[Event "GER-ch Youth-U12 2022"]
[Site "Willingen"]
[Date "2022.06.08"]
[Round "5.27"]
[White "Fettig, Michel"]
[Black "Pham, Jacky"]
[Result "1-0"]
[ECO "C05"]
[WhiteElo "1407"]
[BlackElo "1189"]
[Annotator "NA RC COMBH"]
[PlyCount "51"]
[EventDate "2022.06.05"]
[EventType "swiss"]
[EventRounds "9"]
[EventCountry "GER"]
[SourceTitle "playchess.com"]
[Source "ChessBase"]
[SourceQuality "1"]
[TimeControl "40/4500+30:900+30"]

1. e4 {[%emt 0:00:00]} e6 {[%emt 0:00:00]} 2. d4 {[%emt 0:00:00]} d5 {[%emt 0:00:00]} 3. Nd2 {[%emt 0:00:00]} Nf6 {[%emt 0:00:00]} 4. e5 {[%emt 0:00:00]} Nfd7 {[%emt 0:00:00]} 5. f4 {[%emt 0:00:00]} c5 {[%emt 0:00:00]} 6. c3 {[%emt 0:00:00]} Nc6 {[%emt 0:00:00]} 7. Ndf3 {[%emt 0:00:00]} Qb6 {[%emt 0:00:00]} 8. a3 {[%emt 0:00:00]} a5 {[%emt 0:00:00]} 9. b3 {[%emt 0:00:00]} f6 {[%emt 0:00:00]} 10. Bd3 {[%emt 0:00:00]} cxd4 {[%emt 0:00:00]} 11. cxd4 {[%emt 0:00:00]} Nxd4 {[%emt 0:00:00]} 12. Nxd4 {[%emt 0:00:00]} Bc5 {[%emt 0:00:00]} 13. Bb2 {[%emt 0:00:00]} fxe5 {[%emt 0:01:23]} 14. fxe5 {[%emt 0:00:00]} g6 {[%emt 0:01:42]} 15. Ngf3 {[%emt 0:00:00]} O-O {[%emt 0:01:24]} 16. Bc2 {[%emt 0:00:00]} a4 {[%emt 0:09:56]} 17. b4 {[%emt 0:00:00]} Be7 {[%emt 0:02:25]} 18. O-O {[%emt 0:01:23]} Qc7 {[%emt 0:02:48]} 19. Nxe6 {[%emt 0:00:54]} Qb6+ {[%emt 0:00:23]} 20. Ned4 {[%emt 0:00:20]} Qc7 {[%emt 0:02:06]} 21. Qe2 {[%emt 0:03:03]} Nb8 {[%emt 0:01:56]} 22. Nd2 {[%emt 0:01:15]} Re8 {[%emt 0:01:47]} 23. Qf3 {[%emt 0:00:53]} Bg5 {[%emt 0:01:00]} 24. Qxd5+ {[%emt 0:00:26]} Kh8 {[%emt 0:01:48]} 25. e6 {[%emt 0:01:45]} Bxd2 {[%emt 0:02:15]} 26. Nb5+ {[%emt 0:00:13]} 1-0